[Event "Bangabandhu Premier Div League 2023-24"]
[Site "Dhaka"]
[Date "2024.02.01"]
[Round "1.1"]
[White "Rahman, Syed Mahfuzur"]
[Black "Alam, Monjur"]
[Result "1-0"]
[ECO "C00"]
[WhiteElo "2087"]
[BlackElo "1875"]
[Annotator "ChessBase"]
[PlyCount "79"]
[EventDate "2024.02.01"]
[EventCountry "BAN"]
[SourceTitle "playchess.com"]
[Source "ChessBase"]
[SourceQuality "1"]
[TimeControl "40/5400+30:1800+30"]

1. e4 {[%emt 0:00:09]} e6 {[%emt 0:00:25]} 2. d3 {[%emt 0:00:08]} d5 {[%emt 0:00:37]} 3. Nd2 {[%emt 0:00:08]} dxe4 {[%emt 0:01:24]} 4. dxe4 {[%emt 0:00:09]} Bd7 {[%emt 0:00:11]} 5. Ngf3 {[%emt 0:00:50]} Bc6 {[%emt 0:00:23]} 6. c3 {[%emt 0:02:35]} Bc5 {[%emt 0:05:04]} 7. Qc2 {[%emt 0:02:57]} Nf6 {[%emt 0:01:57]} 8. Be2 {[%emt 0:07:14]} a5 {[%emt 0:01:28]} 9. O-O {[%emt 0:02:30]} Qe7 {[%emt 0:10:51]} 10. e5 {[%emt 0:05:15]} Nfd7 {[%emt 0:01:28]} 11. Ne4 {[%emt 0:01:10]} h6 {[%emt 0:09:13]} 12. Nxc5 {[%emt 0:03:45]} Qxc5 {[%emt 0:02:11]} 13. Be3 {[%emt 0:00:55]} Qe7 {[%emt 0:00:14]} 14. Rfe1 {[%emt 0:08:16]} O-O {[%emt 0:02:14]} 15. a4 {[%emt 0:16:00]} Re8 {[%emt 0:04:11]} 16. b3 {[%emt 0:01:45]} Na6 {[%emt 0:06:36]} 17. Nd4 {[%emt 0:11:59]} Bd5 {[%emt 0:14:04]} 18. f4 {[%emt 0:00:56]} Ndc5 {[%emt 0:05:00]} 19. Bf3 {[%emt 0:09:06]} Bxf3 {[%emt 0:03:25]} 20. Nxf3 {[%emt 0:00:02]} Rad8 {[%emt 0:01:56]} 21. Nd4 {[%emt 0:05:39]} c6 {[%emt 0:06:06]} 22. g3 {[%emt 0:01:06]} Nc7 {[%emt 0:02:18]} 23. Bc1 {[%emt 0:00:48]} Qd7 {[%emt 0:03:34]} 24. Ba3 {[%emt 0:03:53]} N5a6 {[%emt 0:00:25]} 25. Bd6 {[%emt 0:02:28]} Nd5 {[%emt 0:00:44]} 26. Rad1 {[%emt 0:00:22]} Qc8 {[%emt 0:01:08]} 27. c4 {[%emt 0:07:14]} Ndb4 {[%emt 0:01:42]} 28. Qf2 {[%emt 0:00:15]} b6 {[%emt 0:00:54]} 29. f5 {[%emt 0:01:41]} Nc5 {[%emt 0:06:22]} 30. Qf3 {[%emt 0:04:12]} exf5 {[%emt 0:02:08]} 31. Nxf5 {[%emt 0:00:04]} Qb7 {[%emt 0:02:52]} 32. Qg4 {[%emt 0:00:24]} g6 {[%emt 0:00:55]} 33. Nxh6+ {[%emt 0:00:18]} Kh7 {[%emt 0:00:20]} 34. Qh4 {[%emt 0:00:35]} Kg7 {[%emt 0:01:46]} 35. Rf1 {[%emt 0:02:33]} Rd7 {[%emt 0:00:49]} 36. Ng4 {[%emt 0:00:21]} Rh8 {[%emt 0:01:08]} 37. Bf8+ {[%emt 0:00:30]} Kxf8 {[%emt 0:01:11]} 38. Qxh8+ {[%emt 0:00:06]} Ke7 {[%emt 0:00:13]} 39. Nf6 {[%emt 0:00:39]} Rd8 {[%emt 0:00:39]} 40. Qxd8+ {[%emt 0:00:11]} 1-0

[Event "Bangabandhu Premier Div League 2023-24"]
[Site "Dhaka"]
[Date "2024.02.01"]
[Round "1.1"]
[White "Swarnavo Choudhury"]
[Black "Mohammad Minhaz Uddin"]
[Result "0-1"]
[ECO "C42"]
[WhiteElo "2056"]
[BlackElo "2224"]
[Annotator "ChessBase"]
[PlyCount "116"]
[EventDate "2024.02.01"]
[EventCountry "BAN"]
[SourceTitle "playchess.com"]
[Source "ChessBase"]
[SourceQuality "1"]
[TimeControl "40/5400+30:1800+30"]

1. e4 {[%emt 0:00:08]} e5 {[%emt 0:00:04]} 2. Nf3 {[%emt 0:00:10]} Nf6 {[%emt 0:00:03]} 3. Nxe5 {[%emt 0:00:09]} d6 {[%emt 0:00:04]} 4. Nf3 {[%emt 0:00:05]} Nxe4 {[%emt 0:00:03]} 5. d4 {[%emt 0:00:49]} d5 {[%emt 0:00:04]} 6. Bd3 {[%emt 0:00:16]} Nc6 {[%emt 0:00:03]} 7. O-O {[%emt 0:00:45]} Be7 {[%emt 0:00:03]} 8. c4 {[%emt 0:02:34]} Nb4 {[%emt 0:00:08]} 9. Be2 {[%emt 0:01:41]} Bf5 {[%emt 0:00:03]} 10. a3 {[%emt 0:02:21]} Nc6 {[%emt 0:00:03]} 11. Nc3 {[%emt 0:01:11]} Nxc3 {[%emt 0:00:05]} 12. bxc3 {[%emt 0:00:12]} O-O {[%emt 0:00:06]} 13. Re1 {[%emt 0:05:07]} Re8 {[%emt 0:00:15]} 14. cxd5 {[%emt 0:02:58]} Qxd5 {[%emt 0:00:05]} 15. Bf4 {[%emt 0:04:06]} Na5 {[%emt 0:00:50]} 16. Bxc7 {[%emt 0:14:20]} Rac8 {[%emt 0:00:07]} 17. Bxa5 {[%emt 0:05:56]} Qxa5 {[%emt 0:00:05]} 18. c4 {[%emt 0:01:20]} Bf6 {[%emt 0:00:05]} 19. Qb3 {[%emt 0:08:16]} Be4 {[%emt 0:07:33]} 20. Qb4 {[%emt 0:07:22]} Qc7 {[%emt 0:07:39]} 21. Rad1 {[%emt 0:05:13]} Bc2 {[%emt 0:13:50]} 22. Rc1 {[%emt 0:05:25]} a5 {[%emt 0:00:51]} 23. Qd2 {[%emt 0:07:06]} Be4 {[%emt 0:01:44]} 24. c5 {[%emt 0:02:25]} Red8 {[%emt 0:03:29]} 25. Qe3 {[%emt 0:08:56]} Bxf3 {[%emt 0:07:44]} 26. Bxf3 {[%emt 0:00:09]} Bxd4 {[%emt 0:00:08]} 27. Qb3 {[%emt 0:05:07]} Qf4 {[%emt 0:14:46]} 28. Rf1 {[%emt 0:07:17]} Bxc5 {[%emt 0:02:39]} 29. Rcd1 {[%emt 0:02:27]} b6 {[%emt 0:11:30]} 30. Bd5 {[%emt 0:00:43]} a4 {[%emt 0:13:59]} 31. Qa2 {[%emt 0:00:55]} Rd6 {[%emt 0:01:13]} 32. g3 {[%emt 0:00:28]} Qf5 {[%emt 0:00:27]} 33. Bb7 {[%emt 0:00:20]} Rcd8 {[%emt 0:01:22]} 34. Rxd6 {[%emt 0:00:02]} Rxd6 {[%emt 0:00:07]} 35. Qe2 {[%emt 0:00:32]} Qd7 {[%emt 0:03:25]} 36. Ba6 {[%emt 0:00:09]} Rd2 {[%emt 0:00:35]} 37. Qf3 {[%emt 0:01:24]} g6 {[%emt 0:01:44]} 38. Qa8+ {[%emt 0:00:30]} Kg7 {[%emt 0:00:07]} 39. Qf3 {[%emt 0:00:14]} Ra2 {[%emt 0:03:39]} 40. Qc3+ {[%emt 0:00:46]} Qd4 {[%emt 0:00:17]} 41. Qxd4+ {[%emt 0:04:05]} Bxd4 {[%emt 0:00:50]} 42. Bb5 {[%emt 0:00:23]} Rxa3 {[%emt 0:00:09]} 43. Rd1 {[%emt 0:00:09]} Bc5 {[%emt 0:00:36]} 44. Rd2 {[%emt 0:01:14]} Ra1+ {[%emt 0:04:46]} 45. Kg2 {[%emt 0:00:08]} a3 {[%emt 0:00:02]} 46. Bc4 {[%emt 0:00:23]} Rc1 {[%emt 0:00:13]} 47. Ba2 {[%emt 0:00:48]} Kf8 {[%emt 0:02:48]} 48. Rd7 {[%emt 0:01:11]} f5 {[%emt 0:11:08]} 49. Rf7+ {[%emt 0:02:47]} Ke8 {[%emt 0:00:21]} 50. Rxh7 {[%emt 0:00:18]} Rc2 {[%emt 0:00:01]} 51. Bd5 {[%emt 0:07:04]} Rxf2+ {[%emt 0:00:20]} 52. Kh3 {[%emt 0:00:01]} Rd2 {[%emt 0:01:08]} 53. Bc6+ {[%emt 0:00:21]} Kf8 {[%emt 0:00:11]} 54. Ra7 {[%emt 0:00:13]} a2 {[%emt 0:00:30]} 55. Kh4 {[%emt 0:00:50]} Be7+ {[%emt 0:00:07]} 56. Kh3 {[%emt 0:00:04]} Bf6 {[%emt 0:00:07]} 57. Ra8+ {[%emt 0:00:10]} Kg7 {[%emt 0:00:04]} 58. Ra7+ {[%emt 0:00:05]} Kh6 {[%emt 0:00:10]} 0-1

[Event "Bangabandhu Premier Div League 2023-24"]
[Site "Dhaka"]
[Date "2024.02.01"]
[Round "1.2"]
[White "Ahmed, Sheikh Nasir"]
[Black "Sanket Chakravarty"]
[Result "0-1"]
[ECO "A14"]
[WhiteElo "2182"]
[BlackElo "2361"]
[Annotator "ChessBase"]
[PlyCount "78"]
[EventDate "2024.02.01"]
[EventCountry "BAN"]
[SourceTitle "playchess.com"]
[Source "ChessBase"]
[SourceQuality "1"]
[TimeControl "40/5400+30:1800+30"]

1. c4 {[%emt 0:00:09]} Nf6 {[%emt 0:00:31]} 2. Nf3 {[%emt 0:00:42]} e6 {[%emt 0:02:25]} 3. g3 {[%emt 0:00:09]} d5 {[%emt 0:00:45]} 4. Bg2 {[%emt 0:00:07]} Be7 {[%emt 0:01:23]} 5. O-O {[%emt 0:00:15]} O-O {[%emt 0:00:14]} 6. b3 {[%emt 0:00:14]} b6 {[%emt 0:02:07]} 7. Bb2 {[%emt 0:00:43]} Ba6 {[%emt 0:01:20]} 8. d3 {[%emt 0:04:36]} c5 {[%emt 0:00:56]} 9. e3 {[%emt 0:01:04]} Nc6 {[%emt 0:00:49]} 10. Qe2 {[%emt 0:07:17]} Qc7 {[%emt 0:04:37]} 11. e4 {[%emt 0:03:03]} dxe4 {[%emt 0:05:31]} 12. dxe4 {[%emt 0:00:35]} Rad8 {[%emt 0:00:49]} 13. e5 {[%emt 0:05:12]} Ng4 {[%emt 0:01:50]} 14. Na3 {[%emt 0:11:24]} Nh6 {[%emt 0:03:46]} 15. Nc2 {[%emt 0:08:18]} Nf5 {[%emt 0:15:58]} 16. Rfd1 {[%emt 0:00:58]} Bb7 {[%emt 0:03:12]} 17. Rxd8 {[%emt 0:09:40]} Rxd8 {[%emt 0:00:17]} 18. Rd1 {[%emt 0:00:14]} Nb4 {[%emt 0:13:40]} 19. Nxb4 {[%emt 0:02:13]} cxb4 {[%emt 0:00:13]} 20. Rd2 {[%emt 0:10:04]} Bc5 {[%emt 0:07:41]} 21. Qd1 {[%emt 0:01:57]} Rxd2 {[%emt 0:09:07]} 22. Qxd2 {[%emt 0:00:33]} h6 {[%emt 0:00:21]} 23. Qd3 {[%emt 0:05:31]} a5 {[%emt 0:03:28]} 24. Ne1 {[%emt 0:15:07]} Bxg2 {[%emt 0:04:05]} 25. Kxg2 {[%emt 0:00:11]} a4 {[%emt 0:00:22]} 26. Nf3 {[%emt 0:04:03]} a3 {[%emt 0:04:25]} 27. Bc1 {[%emt 0:00:12]} Qc6 {[%emt 0:00:05]} 28. Kg1 {[%emt 0:01:06]} b5 {[%emt 0:03:11]} 29. cxb5 {[%emt 0:02:46]} Bxf2+ {[%emt 0:00:09]} 30. Kxf2 {[%emt 0:00:04]} Qxc1 {[%emt 0:00:06]} 31. Ke2 {[%emt 0:02:28]} Qc5 {[%emt 0:00:49]} 32. g4 {[%emt 0:00:16]} Ne7 {[%emt 0:00:13]} 33. Qd8+ {[%emt 0:04:45]} Kh7 {[%emt 0:00:02]} 34. Qd3+ {[%emt 0:00:01]} g6 {[%emt 0:00:33]} 35. h4 {[%emt 0:00:01]} Nd5 {[%emt 0:00:16]} 36. Kd2 {[%emt 0:00:39]} Nc3 {[%emt 0:00:55]} 37. Qd4 {[%emt 0:01:11]} Qxb5 {[%emt 0:00:17]} 38. Ke3 {[%emt 0:00:34]} Qe2+ {[%emt 0:01:27]} 39. Kf4 {[%emt 0:00:01]} Qg2 {[%emt 0:00:53]} 0-1

[Event "Bangabandhu Premier Div League 2023-24"]
[Site "Dhaka"]
[Date "2024.02.01"]
[Round "1.2"]
[White "Hasan Md, Emam"]
[Black "Hasan, Sk. Rashedul"]
[Result "1-0"]
[ECO "B25"]
[WhiteElo "2053"]
[BlackElo "1807"]
[Annotator "ChessBase"]
[PlyCount "117"]
[EventDate "2024.02.01"]
[EventCountry "BAN"]
[SourceTitle "playchess.com"]
[Source "ChessBase"]
[SourceQuality "1"]
[TimeControl "40/5400+30:1800+30"]

1. e4 {[%emt 0:00:04]} c5 {[%emt 0:00:09]} 2. Nc3 {[%emt 0:00:12]} g6 {[%emt 0:00:16]} 3. g3 {[%emt 0:00:06]} Bg7 {[%emt 0:00:26]} 4. Bg2 {[%emt 0:00:02]} Nc6 {[%emt 0:00:15]} 5. Nge2 {[%emt 0:00:02]} d6 {[%emt 0:00:50]} 6. O-O {[%emt 0:00:07]} e6 {[%emt 0:03:02]} 7. f4 {[%emt 0:00:20]} Nge7 {[%emt 0:00:07]} 8. d3 {[%emt 0:00:19]} O-O {[%emt 0:05:29]} 9. g4 {[%emt 0:01:40]} f5 {[%emt 0:07:19]} 10. gxf5 {[%emt 0:00:17]} exf5 {[%emt 0:03:14]} 11. Ng3 {[%emt 0:00:41]} Nd4 {[%emt 0:00:53]} 12. Be3 {[%emt 0:00:28]} Rb8 {[%emt 0:00:27]} 13. Qd2 {[%emt 0:01:11]} b5 {[%emt 0:00:58]} 14. Nd1 {[%emt 0:02:02]} Qc7 {[%emt 0:01:50]} 15. c3 {[%emt 0:00:52]} Ndc6 {[%emt 0:00:15]} 16. a3 {[%emt 0:04:19]} Na5 {[%emt 0:02:55]} 17. Qf2 {[%emt 0:04:13]} Nb3 {[%emt 0:00:52]} 18. Rb1 {[%emt 0:00:24]} Be6 {[%emt 0:01:15]} 19. Re1 {[%emt 0:02:56]} Kh8 {[%emt 0:11:24]} 20. Qc2 {[%emt 0:13:25]} a5 {[%emt 0:04:06]} 21. exf5 {[%emt 0:06:18]} Nxf5 {[%emt 0:54:58]} 22. Nxf5 {[%emt 0:00:50]} Rxf5 {[%emt 0:00:00]} 23. Bh3 {[%emt 0:00:33]} Qf7 {[%emt 0:00:00]} 24. Bxf5 {[%emt 0:01:41]} Bxf5 {[%emt 0:00:00]} 25. Nf2 {[%emt 0:00:49]} c4 {[%emt 0:00:00]} 26. Qe2 {[%emt 0:01:44]} Re8 {[%emt 0:00:00]} 27. Rbd1 {[%emt 0:00:38]} b4 {[%emt 0:00:00]} 28. axb4 {[%emt 0:02:14]} axb4 {[%emt 0:00:00]} 29. dxc4 {[%emt 0:01:53]} bxc3 {[%emt 0:00:00]} 30. bxc3 {[%emt 0:02:38]} Rc8 {[%emt 0:00:00]} 31. Rxd6 {[%emt 0:06:16]} Bxc3 {[%emt 0:00:00]} 32. Red1 {[%emt 0:00:09]} Bf6 {[%emt 0:00:00]} 33. Qa2 {[%emt 0:02:43]} Rb8 {[%emt 0:00:00]} 34. Bb6 {[%emt 0:00:55]} Rxb6 {[%emt 0:01:23]} 35. Rxb6 {[%emt 0:00:31]} Nc5 {[%emt 0:05:37]} 36. Rxf6 {[%emt 0:04:11]} Qxf6 {[%emt 0:00:00]} 37. Qa8+ {[%emt 0:00:12]} Kg7 {[%emt 0:00:00]} 38. Qa7+ {[%emt 0:00:08]} Nd7 {[%emt 0:00:00]} 39. Rxd7+ {[%emt 0:00:34]} Bxd7 {[%emt 0:00:00]} 40. Qxd7+ {[%emt 0:00:10]} Kg8 {[%emt 0:00:00]} 41. Qe8+ {[%emt 0:31:22]} Kg7 {[%emt 0:27:08]} 42. Qe5 {[%emt 0:00:02]} Kf7 {[%emt 0:00:03]} 43. Qxf6+ {[%emt 0:00:25]} Kxf6 {[%emt 0:00:02]} 44. Kg2 {[%emt 0:00:15]} Kf5 {[%emt 0:07:17]} 45. c5 {[%emt 0:00:26]} Ke6 {[%emt 0:00:00]} 46. Kf3 {[%emt 0:00:04]} Kd5 {[%emt 0:00:00]} 47. Nd3 {[%emt 0:00:12]} h6 {[%emt 0:00:00]} 48. Kg4 {[%emt 0:00:07]} Ke6 {[%emt 0:00:00]} 49. h4 {[%emt 0:00:28]} Kf6 {[%emt 0:00:00]} 50. c6 {[%emt 0:00:13]} h5+ {[%emt 0:00:00]} 51. Kf3 {[%emt 0:00:05]} Ke6 {[%emt 0:00:00]} 52. Ke4 {[%emt 0:00:19]} Kd6 {[%emt 0:00:00]} 53. Nb4 {[%emt 0:00:03]} Ke6 {[%emt 0:00:00]} 54. c7 {[%emt 0:00:42]} Kd7 {[%emt 0:00:00]} 55. Nd5 {[%emt 0:00:00]} g5 {[%emt 0:01:15]} 56. fxg5 {[%emt 0:00:00]} Kd6 {[%emt 0:00:03]} 57. g6 {[%emt 0:00:00]} Kd7 {[%emt 0:02:45]} 58. g7 {[%emt 0:00:00]} Kd6 {[%emt 0:00:04]} 59. g8=Q {[%emt 0:46:30]} 1-0

[Event "Bangabandhu Premier Div League 2023-24"]
[Site "Dhaka"]
[Date "2024.02.01"]
[Round "1.3"]
[White "Mihir Lal, Das"]
[Black "Tashriq Saihan, Shan"]
[Result "1/2-1/2"]
[ECO "E02"]
[WhiteElo "1936"]
[BlackElo "1772"]
[Annotator "ChessBase"]
[PlyCount "95"]
[EventDate "2024.02.01"]
[EventCountry "BAN"]
[SourceTitle "playchess.com"]
[Source "ChessBase"]
[SourceQuality "1"]
[TimeControl "40/5400+30:1800+30"]

1. Nf3 {[%emt 0:00:04]} Nf6 {[%emt 0:00:15]} 2. g3 {[%emt 0:00:02]} d5 {[%emt 0:00:14]} 3. Bg2 {[%emt 0:00:02]} e6 {[%emt 0:00:22]} 4. O-O {[%emt 0:00:15]} Be7 {[%emt 0:00:13]} 5. c4 {[%emt 0:02:50]} dxc4 {[%emt 0:00:35]} 6. Qa4+ {[%emt 0:01:20]} Nbd7 {[%emt 0:00:32]} 7. Qxc4 {[%emt 0:00:10]} O-O {[%emt 0:00:45]} 8. Nc3 {[%emt 0:00:12]} a6 {[%emt 0:00:35]} 9. d4 {[%emt 0:00:29]} c5 {[%emt 0:02:25]} 10. dxc5 {[%emt 0:03:33]} Bxc5 {[%emt 0:01:58]} 11. Bg5 {[%emt 0:04:07]} Qc7 {[%emt 0:02:28]} 12. Qb3 {[%emt 0:03:00]} b5 {[%emt 0:04:43]} 13. Rac1 {[%emt 0:03:45]} Bb7 {[%emt 0:01:19]} 14. a3 {[%emt 0:16:07]} Rac8 {[%emt 0:00:44]} 15. Qa2 {[%emt 0:05:39]} Qb8 {[%emt 0:02:10]} 16. b4 {[%emt 0:02:22]} Be7 {[%emt 0:01:42]} 17. Rfd1 {[%emt 0:05:37]} Rfd8 {[%emt 0:00:41]} 18. Qa1 {[%emt 0:07:18]} h6 {[%emt 0:01:36]} 19. Bf4 {[%emt 0:03:21]} Qa8 {[%emt 0:05:16]} 20. Bd6 {[%emt 0:03:50]} Bxd6 {[%emt 0:01:19]} 21. Rxd6 {[%emt 0:00:03]} Ne5 {[%emt 0:02:59]} 22. Rxd8+ {[%emt 0:03:58]} Rxd8 {[%emt 0:03:32]} 23. Nxe5 {[%emt 0:10:56]} Bxg2 {[%emt 0:00:22]} 24. f3 {[%emt 0:10:05]} Bh3 {[%emt 0:00:46]} 25. Rd1 {[%emt 0:00:15]} Qa7+ {[%emt 0:03:54]} 26. Kh1 {[%emt 0:00:03]} Rc8 {[%emt 0:01:13]} 27. Rd3 {[%emt 0:01:18]} Qc7 {[%emt 0:11:09]} 28. f4 {[%emt 0:09:26]} Qb7+ {[%emt 0:02:12]} 29. Nf3 {[%emt 0:04:53]} Ne4 {[%emt 0:02:32]} 30. Nxe4 {[%emt 0:00:00]} Qxe4 {[%emt 0:00:20]} 31. Qd1 {[%emt 0:00:00]} Kh7 {[%emt 0:12:11]} 32. Kg1 {[%emt 0:00:00]} Qc6 {[%emt 0:03:02]} 33. Rd6 {[%emt 0:00:00]} Qb7 {[%emt 0:01:22]} 34. Qd3+ {[%emt 0:00:39]} g6 {[%emt 0:03:34]} 35. Rd7 {[%emt 0:01:20]} Qb6+ {[%emt 0:06:44]} 36. Qd4 {[%emt 0:00:15]} Qxd4+ {[%emt 0:00:37]} 37. Rxd4 {[%emt 0:00:18]} Rc1+ {[%emt 0:01:56]} 38. Kf2 {[%emt 0:00:01]} Ra1 {[%emt 0:00:15]} 39. Rd7 {[%emt 0:00:35]} Rxa3 {[%emt 0:01:20]} 40. Rxf7+ {[%emt 0:00:04]} Kg8 {[%emt 0:00:12]} 41. Ra7 {[%emt 0:30:42]} Bf5 {[%emt 0:32:41]} 42. Nd4 {[%emt 0:00:00]} Ra4 {[%emt 0:00:00]} 43. Ke3 {[%emt 0:00:00]} Ra3+ {[%emt 0:00:00]} 44. Kd2 {[%emt 0:00:00]} Ra2+ {[%emt 0:00:00]} 45. Ke3 {[%emt 0:00:00]} Ra3+ {[%emt 0:00:00]} 46. Kd2 {[%emt 0:00:00]} Ra2+ {[%emt 0:00:00]} 47. Ke3 {[%emt 0:00:00]} Ra3+ {[%emt 0:00:00]} 48. Kd2 {[%emt 0:00:00]} 1/2-1/2

[Event "Bangabandhu Premier Div League 2023-24"]
[Site "Dhaka"]
[Date "2024.02.01"]
[Round "1.4"]
[White "Manon, Reja Neer"]
[Black "Avik, Sarker"]
[Result "1-0"]
[ECO "C42"]
[WhiteElo "2169"]
[BlackElo "1914"]
[Annotator "ChessBase"]
[PlyCount "81"]
[EventDate "2024.02.01"]
[EventCountry "BAN"]
[SourceTitle "playchess.com"]
[Source "ChessBase"]
[SourceQuality "1"]
[TimeControl "40/5400+30:1800+30"]

1. e4 {[%emt 0:00:04]} e5 {[%emt 0:00:23]} 2. Nf3 {[%emt 0:00:05]} Nf6 {[%emt 0:00:12]} 3. Nxe5 {[%emt 0:00:03]} d6 {[%emt 0:00:06]} 4. Nf3 {[%emt 0:00:02]} Nxe4 {[%emt 0:00:08]} 5. c4 {[%emt 0:00:02]} Be7 {[%emt 0:04:30]} 6. d4 {[%emt 0:00:04]} O-O {[%emt 0:06:41]} 7. Bd3 {[%emt 0:01:08]} Nf6 {[%emt 0:10:25]} 8. Nc3 {[%emt 0:00:17]} d5 {[%emt 0:06:32]} 9. O-O {[%emt 0:00:59]} c5 {[%emt 0:04:41]} 10. cxd5 {[%emt 0:13:45]} Nxd5 {[%emt 0:03:34]} 11. Nxd5 {[%emt 0:01:54]} Qxd5 {[%emt 0:00:08]} 12. Re1 {[%emt 0:00:02]} Bf6 {[%emt 0:07:36]} 13. Qc2 {[%emt 0:04:08]} g6 {[%emt 0:15:19]} 14. Be4 {[%emt 0:08:56]} Qh5 {[%emt 0:04:29]} 15. dxc5 {[%emt 0:01:05]} Na6 {[%emt 0:04:25]} 16. Be3 {[%emt 0:03:10]} Bf5 {[%emt 0:02:08]} 17. Rad1 {[%emt 0:09:55]} Bxe4 {[%emt 0:05:35]} 18. Qxe4 {[%emt 0:00:12]} Nxc5 {[%emt 0:03:32]} 19. Qf4 {[%emt 0:02:33]} Be7 {[%emt 0:03:15]} 20. g4 {[%emt 0:08:57]} Qh3 {[%emt 0:00:33]} 21. Bxc5 {[%emt 0:06:40]} Bxc5 {[%emt 0:00:06]} 22. Rd7 {[%emt 0:04:19]} Rad8 {[%emt 0:06:57]} 23. Rxd8 {[%emt 0:03:09]} Rxd8 {[%emt 0:00:03]} 24. Ng5 {[%emt 0:00:25]} Bxf2+ {[%emt 0:02:36]} 25. Kh1 {[%emt 0:00:27]} Rf8 {[%emt 0:02:45]} 26. Nxh3 {[%emt 0:00:17]} Bxe1 {[%emt 0:00:07]} 27. Ng5 {[%emt 0:00:36]} Bh4 {[%emt 0:00:51]} 28. Ne4 {[%emt 0:00:18]} Be7 {[%emt 0:01:17]} 29. Qc7 {[%emt 0:00:10]} Re8 {[%emt 0:01:37]} 30. Qxb7 {[%emt 0:00:10]} Bd8 {[%emt 0:01:03]} 31. Nd6 {[%emt 0:00:44]} Rf8 {[%emt 0:01:25]} 32. Qxa7 {[%emt 0:00:30]} f5 {[%emt 0:00:24]} 33. gxf5 {[%emt 0:00:18]} gxf5 {[%emt 0:00:06]} 34. Kg2 {[%emt 0:00:27]} f4 {[%emt 0:00:38]} 35. Kf3 {[%emt 0:00:04]} Bf6 {[%emt 0:00:31]} 36. b4 {[%emt 0:00:25]} Be5 {[%emt 0:00:26]} 37. Qc5 {[%emt 0:00:05]} Bxd6 {[%emt 0:00:42]} 38. Qxd6 {[%emt 0:00:03]} Kg7 {[%emt 0:01:40]} 39. b5 {[%emt 0:00:04]} Rf6 {[%emt 0:00:13]} 40. Qxf6+ {[%emt 0:00:12]} Kxf6 {[%emt 0:00:09]} 41. b6 {[%emt 0:30:02]} 1-0

[Event "Bangabandhu Premier Div League 2023-24"]
[Site "Dhaka"]
[Date "2024.02.01"]
[Round "1.4"]
[White "Muhimenul, Islam"]
[Black "Abdullah Al, Raison"]
[Result "0-1"]
[ECO "A29"]
[WhiteElo "1970"]
[BlackElo "1839"]
[Annotator "ChessBase"]
[PlyCount "72"]
[EventDate "2024.02.01"]
[EventCountry "BAN"]
[SourceTitle "playchess.com"]
[Source "ChessBase"]
[SourceQuality "1"]
[TimeControl "40/5400+30:1800+30"]

1. c4 {[%emt 0:00:13]} e5 {[%emt 0:00:37]} 2. g3 {[%emt 0:01:05]} Nf6 {[%emt 0:00:07]} 3. Bg2 {[%emt 0:00:29]} d5 {[%emt 0:00:20]} 4. cxd5 {[%emt 0:00:46]} Nxd5 {[%emt 0:00:06]} 5. Nc3 {[%emt 0:00:59]} Nb6 {[%emt 0:00:18]} 6. Nf3 {[%emt 0:01:01]} Nc6 {[%emt 1:32:02]} 7. O-O {[%emt 0:01:43]} Be7 {[%emt 0:00:00]} 8. d3 {[%emt 0:01:48]} O-O {[%emt 0:00:00]} 9. b3 {[%emt 0:02:13]} Be6 {[%emt 0:00:00]} 10. Bb2 {[%emt 0:02:08]} f6 {[%emt 0:00:00]} 11. h3 {[%emt 0:02:49]} Nd5 {[%emt 0:00:00]} 12. Kh2 {[%emt 0:02:07]} Nxc3 {[%emt 0:00:00]} 13. Bxc3 {[%emt 0:00:17]} Bd5 {[%emt 0:00:00]} 14. Qd2 {[%emt 0:02:27]} a5 {[%emt 0:00:00]} 15. Rfd1 {[%emt 0:11:13]} Bb4 {[%emt 0:00:00]} 16. e4 {[%emt 0:04:36]} Be6 {[%emt 0:00:00]} 17. d4 {[%emt 0:00:42]} exd4 {[%emt 0:00:00]} 18. Nxd4 {[%emt 0:03:36]} Nxd4 {[%emt 0:00:00]} 19. Qxd4 {[%emt 0:06:29]} Qxd4 {[%emt 0:00:00]} 20. Bxd4 {[%emt 0:00:13]} Rfd8 {[%emt 0:00:00]} 21. Bb2 {[%emt 0:08:36]} c6 {[%emt 0:00:00]} 22. f4 {[%emt 0:03:42]} Kf8 {[%emt 0:00:00]} 23. Bf3 {[%emt 0:06:15]} Rxd1 {[%emt 0:00:00]} 24. Rxd1 {[%emt 0:01:08]} a4 {[%emt 0:00:00]} 25. a3 {[%emt 0:08:17]} Bxb3 {[%emt 0:00:00]} 26. Rd7 {[%emt 0:01:10]} Be7 {[%emt 0:00:00]} 27. g4 {[%emt 0:17:06]} Rd8 {[%emt 0:00:00]} 28. Rxd8+ {[%emt 0:00:27]} Bxd8 {[%emt 0:00:00]} 29. Kg3 {[%emt 0:01:26]} b5 {[%emt 0:00:17]} 30. h4 {[%emt 0:00:40]} c5 {[%emt 0:00:09]} 31. Kf2 {[%emt 0:02:52]} Be7 {[%emt 0:01:24]} 32. Ke3 {[%emt 0:01:52]} b4 {[%emt 0:00:20]} 33. Kd2 {[%emt 0:03:14]} c4 {[%emt 0:01:23]} 34. axb4 {[%emt 0:01:26]} Bxb4+ {[%emt 0:00:02]} 35. Kc1 {[%emt 0:00:30]} c3 {[%emt 0:00:45]} 36. Ba1 {[%emt 0:00:44]} Ba3+ {[%emt 0:00:16]} 0-1